fUST/lending_fUST_20260424
["ID","MTS","AMOUNT","RATE_DAILY","PERIOD"]
[421082260,1776996641090,-3140.2925321,0.00018558,2]
[421082261,1776996641099,-6442.1560853,0.00018558,2]
[421082262,1776996641108,-151.0,0.00018558,2]
[421082263,1776996641118,-192.366082,0.00018558,2]
[421082264,1776996641128,-358.061954,0.00018558,2]
[421082265,1776996641138,-358.061954,0.00018558,2]
[421082266,1776996641147,-358.061954,0.00018558,2]
[421082267,1776996641156,-358.061954,0.00018558,2]
[421082268,1776996641165,-621.78829552,0.00018569,2]
[421082269,1776996641174,-2264.10087164,0.00018569,2]
[421082270,1776996641183,-1423.51076173,0.00018591,2]
[421082271,1776996641193,-1000.0,0.00018591,2]
[421082272,1776996641202,-1003.67818932,0.00018591,2]
[421082273,1776996641212,-1000.0,0.00018591,2]
[421082274,1776996641221,-1004.69870246,0.00018591,2]
[421082275,1776996641231,-151.0,0.00018591,2]
[421082276,1776996641240,-934.94107,0.00018591,2]
[421082277,1776996641249,-934.94107,0.00018591,2]
[421082278,1776996641259,-934.94107,0.00018591,2]
[421082279,1776996641268,-934.94107,0.00018591,2]
[421082280,1776996641277,-151.0,0.00018592,2]
[421082281,1776996641286,-151.0,0.00018592,2]
[421082282,1776996641296,-151.0,0.00018592,2]
[421082283,1776996641305,-151.0,0.00018592,2]
[421082284,1776996641314,-151.0,0.00018592,2]
[421082285,1776996641323,-254.013208,0.00018592,2]
[421082286,1776996641332,-151.0,0.00018592,2]
[421082287,1776996641341,-151.0,0.00018592,2]
[421082288,1776996641351,-151.0,0.00018593,2]
[421082289,1776996641360,-934.94107,0.00018593,2]
[421082290,1776996641369,-934.94107,0.00018593,2]
[421082291,1776996641380,-934.94107,0.00018593,2]
[421082292,1776996641389,-934.94107,0.00018593,2]
[421082293,1776996641399,-151.0,0.00018593,2]
[421082294,1776996641408,-151.0,0.00018593,2]
[421082295,1776996641417,-358.061954,0.00018593,2]
[421082296,1776996641427,-358.061954,0.00018593,2]
[421082297,1776996641436,-358.061954,0.00018593,2]
[421082298,1776996641445,-358.061954,0.00018593,2]
[421082299,1776996641454,-358.061954,0.00018593,2]
[421082300,1776996641463,-358.061954,0.00018593,2]
[421082301,1776996641473,-358.061954,0.00018593,2]
[421082302,1776996641482,-358.061954,0.00018593,2]
[421082303,1776996641491,-249344.38807478,0.00018593,2]
[421082304,1776996641500,-156.632,0.00018594,2]
[421082305,1776996641510,-151.0,0.00018595,2]
[421082306,1776996641519,-644.79446246,0.00018624,2]
[421082307,1776996641528,-2347.87260389,0.00018624,2]
[421082308,1776996641537,-151.0,0.00018638,2]
[421082309,1776996641546,-151.0,0.00018638,2]
[421082310,1776996641555,-151.0,0.00018638,2]
[421082311,1776996641565,-151.0,0.00018638,2]
[421082312,1776996641574,-274.737312,0.00018638,2]
[421082313,1776996641583,-452.05688633,0.00018665,2]
[421082314,1776996641592,-231.0,0.00018672,2]
[421082315,1776996641602,-668.65185757,0.00018679,2]
[421082316,1776996641611,-2434.74389024,0.00018679,2]
[421082317,1776996641620,-500.0,0.00018694,2]
[421082318,1776996641630,-502.47409615,0.00018694,2]
[421082319,1776996641638,-200.0,0.000187,2]
[421082320,1776996641648,-693.3919763,0.00018734,2]
[421082321,1776996641657,-2524.82941417,0.00018734,2]
[421082322,1776996641667,-151.559762,0.00018748,2]
[421082323,1776996641677,-151.0,0.00018748,2]
[421082324,1776996641686,-152.479387,0.00018748,2]
[421082325,1776996641695,-719.04747942,0.00018789,2]
[421082326,1776996641704,-684.03174884,0.00018789,2]
[421082327,1776996641714,-151.0,0.00018793,2]
[421082328,1776996641723,-151.0,0.00018793,2]
[421082329,1776996641732,-151.0,0.00018793,2]
[421082330,1776996641741,-151.0,0.00018793,2]
[421082331,1776996641750,-293.325985,0.00018793,2]
[421082332,1776996641760,-934.94107,0.00018793,2]
[421082333,1776996641769,-934.94107,0.00018793,2]
[421082334,1776996641778,-934.94107,0.00018793,2]
[421082335,1776996641788,-934.94107,0.00018793,2]
[421082336,1776996641798,-455.8385479,0.00018842,2]
[421082337,1776996641807,-745.65223616,0.00018844,2]
[421082338,1776996641816,-151.0,0.00018858,2]
[421082339,1776996641825,-151.0,0.00018858,2]
[421082340,1776996641834,-151.0,0.00018858,2]
[421082341,1776996641844,-151.0,0.00018858,2]
[421082342,1776996641853,-151.0,0.00018897,2]
[421082343,1776996641862,-358.061954,0.00018897,2]
[421082344,1776996641871,-358.061954,0.00018897,2]
[421082345,1776996641881,-358.061954,0.00018897,2]
[421082346,1776996641890,-358.061962,0.00018897,2]
[421082347,1776996642115,-461.67526834,0.00018897,2]
[421082348,1776996642125,-557.5788265,0.00018897,2]
[421082349,1776996642135,-2230.315306,0.00018897,2]
[421082350,1776996642144,-773.2413689,0.00018899,2]
[421082351,1776996642154,-151.0,0.00018913,2]
[421082352,1776996642163,-801.85129955,0.00018954,2]
[421082353,1776996642173,-934.94107,0.00018968,2]
[421082354,1776996642183,-934.94107,0.00018968,2]
[421082355,1776996642192,-934.94107,0.00018968,2]
[421082356,1776996642202,-934.941063,0.00018968,2]
[421082358,1776996642211,-204.73,0.00019,30]
[421082360,1776996642221,-344.0,0.00019,2]
[421082362,1776996642230,-164.0,0.00019,2]
[421082363,1776996642239,-228.0,0.00019,2]
[421082364,1776996642249,-407.0,0.00019,2]
[421082366,1776996642258,-264.0,0.00019,2]
[421082367,1776996642268,-169.0,0.00019,2]
[421082368,1776996642277,-2322.0,0.00019,2]
[421082369,1776996642286,-831.51979763,0.00019009,2]
[421082370,1776996642295,-1228.32767493,0.0001901,2]
[421082371,1776996642304,-151.0,0.00019013,2]
[421082372,1776996642314,-151.0,0.00019013,2]
[421082374,1776996642323,-151.0,0.00019013,2]
[421082375,1776996642332,-204.98997,0.00019013,2]
[421082376,1776996642342,-151.0,0.00019013,2]
[421082377,1776996642351,-151.0,0.00019013,2]
[421082378,1776996642360,-272.247675,0.00019056,7]
[421082379,1776996642370,-160.0,0.00019056,2]
[421082380,1776996642378,-5071.273075,0.00019056,2]
[421082381,1776996642387,-9982.546151,0.00019056,2]
[421082382,1776996642397,-160.0,0.00019063,2]
[421082384,1776996642406,-2183.854791,0.00019063,2]
[421082386,1776996642415,-4207.709583,0.00019063,2]
[421082388,1776996642424,-862.28603014,0.00019064,2]
[421082390,1776996642434,-894.19061326,0.00019119,2]
[421082392,1776996642443,-151.0,0.00019131,2]
[421082394,1776996642452,-927.27566595,0.00019174,2]
[421082395,1776996642461,-300.0,0.00019178,2]
[421082396,1776996642470,-1561.0,0.00019178,2]
[421082397,1776996642479,-526.12,0.00019192,2]
[421082398,1776996642488,-5035.47720091,0.00019206,2]
[421082399,1776996642497,-151.0,0.00019243,2]
[421082400,1776996642506,-151.0,0.00019243,2]
[421082401,1776996642515,-151.0,0.00019243,2]
[421082402,1776996642524,-500.0,0.00019244,2]
[421082403,1776996642534,-500.0,0.00019244,2]
[421082404,1776996642544,-160.0,0.00019276,2]
[421082405,1776996642553,-501.48403883,0.00019284,2]
[421082406,1776996642562,-154.82352348,0.00019284,2]
[421082407,1776996642571,-500.0,0.00019284,2]
[421082408,1776996642580,-151.0,0.00019288,2]
[421082409,1776996642590,-500.0,0.00019323,2]
[421082410,1776996642600,-501.24537476,0.00019323,2]
[421082411,1776996642609,-500.0,0.00019339,2]
[421082412,1776996642618,-500.0,0.00019339,2]
[421082413,1776996642627,-215.75755074,0.00019339,2]
[421082414,1776996642637,-500.0,0.00019339,2]
[421082415,1776996642646,-500.0,0.00019339,2]
[421082416,1776996642655,-500.0,0.00019339,2]
[421082417,1776996642664,-504.23657728,0.00019339,2]
[421082418,1776996642674,-273.855,0.00019339,2]
[421082419,1776996642683,-2217.038,0.00019339,2]
[421082420,1776996642692,-648.841,0.00019339,2]
[421082421,1776996642701,-1415.675,0.00019339,2]
[421082422,1776996642711,-442.0,0.00019339,2]
[421082423,1776996642720,-185.0,0.00019339,2]
[421082424,1776996642730,-500.43566,0.00019343,2]
[421082425,1776996642739,-151.5,0.00019345,2]
[421082427,1776996642749,-337.91551145,0.00019357,2]
[421082428,1776996642758,-500.0,0.00019365,2]
[421082429,1776996642767,-500.0,0.00019365,2]
[421082430,1776996642776,-154.637272,0.00019402,2]
[421082431,1776996642785,-5022.92182576,0.00019402,2]
[421082432,1776996642794,-478.75725327,0.00019445,2]
[421082433,1776996642803,-359.44418364,0.00019445,2]
[421082434,1776996642814,-2312.83697232,0.00019445,2]
[421082435,1776996642823,-1561.0,0.00019452,2]
[421082436,1776996642833,-195.7,0.00019456,7]
[421082437,1776996642842,-225.38977988,0.00019464,2]
[421082438,1776996642852,-236.26827156,0.0001951,60]
[421082439,1776996642861,-300.0,0.00019589,3]
[421082440,1776996642870,-1001.6,0.0001959,2]
[421082441,1776996642880,-152.122561,0.000196,2]
[421082442,1776996642889,-102503.90539671,0.000196,2]
[421082443,1776996642898,-151.5,0.00019619,2]
[421082444,1776996642907,-151.0,0.00019662,2]
[421082445,1776996642917,-823.0,0.00019662,2]
[421082446,1776996642927,-455.8385479,0.00019674,2]
[421082447,1776996642936,-325.2263125,0.00019675,2]
[421082448,1776996642945,-1561.0,0.00019726,2]
[421082450,1776996642955,-1000.0,0.00019792,2]
[421082451,1776996642964,-1000.0,0.00019792,2]
[421082453,1776996642973,-262.9419,0.00019795,2]
[421082454,1776996642982,-153.0,0.000198,3]
[421082455,1776996642991,-153.25788943,0.000198,3]
[421082456,1776996643001,-793.0,0.000198,2]
[421082457,1776996643011,-200.0,0.000198,2]
[421082458,1776996643021,-1000.0,0.00019832,2]
[421082459,1776996643031,-1000.0,0.00019871,2]
[421082460,1776996643040,-160.0,0.0001988,4]
[421082461,1776996643050,-1000.0,0.00019887,2]
[421082462,1776996643059,-634.10543383,0.00019887,2]
[421082463,1776996643069,-497.64650682,0.00019887,2]
[421082464,1776996643078,-1000.0,0.00019887,2]
[421082465,1776996643087,-1026.94770436,0.00019887,2]
[421082466,1776996643096,-151.5,0.00019893,2]
[421082467,1776996643105,-575.21936177,0.000199,2]
[421082468,1776996643115,-1228.32767493,0.000199,2]
[421082469,1776996643124,-1000.0,0.00019913,2]
[421082470,1776996643133,-1000.0,0.00019913,2]
[421082471,1776996643142,-501.33759048,0.00019973,2]
[421082472,1776996643152,-503.16048686,0.00019973,2]
[421082473,1776996643161,-298.32065518,0.00019973,2]
[421082474,1776996643170,-500.0,0.00019973,2]
[421082475,1776996643180,-150.0,0.00019973,2]
[421082476,1776996643189,-151.0,0.00019979,5]
[421082477,1776996643199,-224.31534026,0.00019982,2]
[421082478,1776996643209,-496.47127164,0.00019993,2]
[421082479,1776996643218,-2398.4119403,0.00019993,2]
[421082480,1776996643227,-1561.0,0.0002,2]
[421082481,1776996643236,-353743.70119481,0.0002,2]
[421082482,1776996643246,-40350.36466326,0.0002,2]
[421082483,1776996643255,-136912.95393989,0.0002,2]
[421082486,1776996644088,-3771.27036072,0.0002,2]
[421082487,1776996644209,-2043.14560171,0.0002,2]
[421082488,1776996644229,-5056.0879212,0.0002,2]
[421082499,1776996646182,-152.0,0.00018258,7]
[421082500,1776996646195,-7689.07582979,0.0002,2]
[421082501,1776996646235,-6439.79107111,0.0002,2]
[421082511,1776997635126,-351.6703743,0.00011901,2]
[421082512,1776997635148,-252.41913891,0.00011901,2]
[421082513,1776997638083,-175.85459213,0.00011901,2]
[421082514,1776997639101,-159.72626896,0.00011901,2]
[421082515,1776997639124,-150.0,0.00012301,2]
[421082516,1776997639148,-216.98,0.000127,2]
[421082517,1776997639168,-368.14261472,0.00013365,14]
[421082518,1776997639188,-224.69692019,0.00013699,2]
[421082519,1776997641143,-196.93593978,0.00013699,2]
[421082520,1776997769094,-615.0,0.00013699,2]
[421082521,1776997769115,-14.93132557,0.00013699,2]
[421082522,1776997773106,-162.3199623,0.00013699,2]
[421082621,1776997832556,-822.74871213,0.00013699,2]
[421082623,1776997832566,-615.0,0.00013699,2]
[421082625,1776997832575,-150.0,0.00014,2]
[421082627,1776997832584,-1200.0,0.0001881,2]
[421082629,1776997832593,-824.21963332,0.00018811,2]
[421082710,1776997838185,-177.0,0.00016,2]
[421082711,1776997838194,-204.0,0.00018,2]
[421082712,1776997838204,-1148.45453676,0.00018811,2]
[421082713,1776997838216,-1015.84135342,0.00018811,2]
[421082726,1776997845842,-1474.82620582,0.00018811,2]
[421082729,1776997845898,-536.65827068,0.00018811,2]
[421082730,1776997845910,-5000.0,0.00018811,2]
[421082731,1776997845919,-300.0,0.00018877,2]
[421082732,1776997845928,-11967.89380464,0.00018878,2]
[421082733,1776997845937,-817.25824068,0.00018928,2]
[421082734,1776997845947,-537.6845,0.00018967,2]
[421082735,1776997845956,-2150.738,0.00018967,2]
[421082736,1776997845966,-160.41242527,0.00018977,2]
[421082737,1776997845975,-817.25824068,0.00018978,2]
[421082738,1776997845984,-176.14523805,0.00019022,2]
[421082739,1776997845994,-817.25824068,0.00019028,2]
[421082740,1776997846003,-321.14390909,0.00019067,2]
[421082741,1776997846013,-817.25824068,0.00019078,2]
[421082742,1776997846022,-268.6597894,0.00019178,2]
[421082743,1776997846032,-500.0,0.00019178,2]
[421082744,1776997846041,-1098.09,0.00019178,2]
[421082745,1776997846051,-1734.21,0.00019178,2]
[421082746,1776997846060,-1343.06709846,0.00019178,2]
[421082747,1776997846071,-112.70290154,0.00019178,2]
[421082748,1776997846080,-175.37067081,0.00019178,2]
[421082749,1776997846113,-324.62932919,0.00019178,2]
[421082750,1776997846122,-1299.39,0.00019178,2]
[421082751,1776997846133,-500.0,0.00019178,2]
[421082752,1776997846144,-500.0,0.00019178,2]
[421082753,1776997846154,-500.0,0.00019178,2]
[421082754,1776997846163,-500.0,0.00019178,2]
[421082755,1776997846173,-500.0,0.00019178,2]
[421082756,1776997846182,-507.73827269,0.00019178,2]
[421082757,1776997846191,-500.0,0.00019178,2]
[421082758,1776997846200,-512.52111495,0.00019178,2]
[421082759,1776997846209,-516.80544391,0.00019178,2]
[421082760,1776997846219,-2027.17,0.00019178,2]
[421082761,1776997846228,-500.0,0.00019178,2]
[421082762,1776997846237,-500.0,0.00019178,2]
[421082763,1776997846246,-583.28,0.00019178,2]
[421082764,1776997846256,-500.0,0.00019178,2]
[421082765,1776997846265,-500.0,0.00019178,2]
[421082766,1776997846274,-500.0,0.00019178,2]
[421082767,1776997846284,-500.0,0.00019178,2]
[421082768,1776997846293,-500.0,0.00019178,2]
[421082769,1776997846302,-500.0,0.00019178,2]
[421082770,1776997846312,-637.67,0.00019178,2]
[421082771,1776997846321,-500.0,0.00019178,2]
[421082773,1776997846330,-2738.49,0.00019178,2]
[421082774,1776997846339,-512.31897652,0.00019178,2]
[421082775,1776997846348,-500.0,0.00019178,2]
[421082776,1776997846358,-500.0,0.00019178,2]
[421082777,1776997846367,-500.0,0.00019178,2]
[421082778,1776997846376,-631.8445688,0.00019178,2]
[421082779,1776997846386,-500.0,0.00019178,2]
[421082780,1776997846395,-500.0,0.00019178,2]
[421082781,1776997846404,-500.0,0.00019178,2]
[421082782,1776997846414,-1464.9,0.00019178,2]
[421082783,1776997846423,-500.0,0.00019178,2]
[421082784,1776997846433,-500.0,0.00019178,2]
[421082786,1776997846442,-500.0,0.00019178,2]
[421082787,1776997846452,-500.0,0.00019178,2]
[421082788,1776997846462,-500.0,0.00019178,2]
[421082789,1776997846471,-500.0,0.00019178,2]
[421082790,1776997846480,-500.0,0.00019178,2]
[421082791,1776997846489,-500.0,0.00019178,2]
[421082792,1776997846498,-500.0,0.00019178,2]
[421082793,1776997846507,-500.0,0.00019178,2]
[421082794,1776997846515,-505.84359875,0.00019178,2]
[421082795,1776997846525,-3203.73,0.00019178,2]
[421082796,1776997846535,-444.30274129,0.00019178,2]
[421082797,1776997846546,-500.0,0.00019178,2]
[421082798,1776997846556,-1759.83,0.00019178,2]
[421082801,1776997846870,-500.0,0.00019178,2]
[421082802,1776997846880,-500.0,0.00019178,2]
[421082803,1776997846890,-500.0,0.00019178,2]
[421082804,1776997846900,-500.0,0.00019178,2]
[421082805,1776997846909,-500.0,0.00019178,2]
[421082806,1776997846919,-500.0,0.00019178,2]
[421082807,1776997846929,-500.0,0.00019178,2]
[421082808,1776997846938,-500.0,0.00019178,2]
[421082809,1776997846947,-1802.0,0.00019178,2]
[421082810,1776997846956,-500.0,0.00019178,2]
[421082811,1776997846966,-500.0,0.00019178,2]
[421082812,1776997846975,-500.0,0.00019178,2]
[421082813,1776997846984,-186.78548295,0.00019178,2]
[421082814,1776997846993,-500.0,0.00019178,2]
[421082815,1776997847003,-500.0,0.00019178,2]
[421082816,1776997847012,-500.0,0.00019178,2]
[421082817,1776997847022,-546.51499247,0.00019178,2]
[421082818,1776997847031,-500.0,0.00019178,2]
[421082819,1776997847040,-500.0,0.00019178,2]
[421082820,1776997847050,-500.0,0.00019178,2]
[421082821,1776997847059,-500.0,0.00019178,2]
[421082822,1776997847068,-500.0,0.00019178,2]
[421082823,1776997847078,-890.56,0.00019178,2]
[421082824,1776997847088,-500.0,0.00019178,2]
[421082825,1776997847097,-500.0,0.00019178,2]
[421082826,1776997847107,-500.0,0.00019178,2]
[421082827,1776997847116,-500.0,0.00019178,2]
[421082828,1776997847126,-500.0,0.00019178,2]
[421082829,1776997847135,-500.0,0.00019178,2]
[421082830,1776997847145,-500.0,0.00019178,2]
[421082831,1776997847155,-512.39376937,0.00019178,2]
[421082832,1776997847164,-500.0,0.00019178,2]
[421082833,1776997847174,-726.58,0.00019178,2]
[421082834,1776997847183,-500.0,0.00019178,2]
[421082835,1776997847193,-500.0,0.00019178,2]
[421082836,1776997847202,-912.69,0.00019178,2]
[421082837,1776997847212,-740.61,0.00019178,2]
[421082838,1776997847223,-500.0,0.00019178,2]
[421082839,1776997847232,-500.0,0.00019178,2]
[421082840,1776997847242,-500.0,0.00019178,2]
[421082841,1776997847251,-506.00075426,0.00019178,2]
[421082842,1776997847260,-500.0,0.00019178,2]
[421082843,1776997847270,-500.0,0.00019178,2]
[421082844,1776997847280,-500.0,0.00019178,2]
[421082845,1776997847289,-2357.27,0.00019178,2]
[421082846,1776997847298,-500.0,0.00019178,2]
[421082847,1776997847308,-500.0,0.00019178,2]
[421082848,1776997847319,-500.0,0.00019178,2]
[421082849,1776997847328,-538.48,0.00019178,2]
[421082850,1776997847338,-618.59157571,0.00019178,2]
[421082851,1776997847348,-500.0,0.00019178,2]
[421082852,1776997847358,-500.0,0.00019178,2]
[421082853,1776997847368,-500.0,0.00019178,2]
[421082854,1776997847378,-510.03350756,0.00019178,2]
[421082855,1776997847387,-500.0,0.00019178,2]
[421082856,1776997847396,-500.0,0.00019178,2]
[421082857,1776997847406,-610.67587481,0.00019178,2]
[421082858,1776997847415,-2527.48,0.00019178,2]
[421082859,1776997847425,-500.47087256,0.00019178,2]
[421082860,1776997847434,-512.83982421,0.00019178,2]
[421082861,1776997847443,-166.98887013,0.00019178,2]
[421082862,1776997847453,-2803.58,0.00019178,2]
[421082863,1776997847462,-731.46,0.00019178,2]
[421082864,1776997847472,-500.0,0.00019178,2]
[421082865,1776997847481,-500.0,0.00019178,2]
[421082866,1776997847491,-500.0,0.00019178,2]
[421082867,1776997847500,-500.0,0.00019178,2]
[421082868,1776997847510,-500.0,0.00019178,2]
[421082869,1776997847521,-500.0,0.00019178,2]
[421082870,1776997847530,-500.0,0.00019178,2]
[421082871,1776997847540,-500.0,0.00019178,2]
[421082872,1776997847550,-636.47,0.00019178,2]
[421082873,1776997847560,-500.0,0.00019178,2]
[421082874,1776997847569,-507.20576809,0.00019178,2]
[421082875,1776997847578,-500.0,0.00019178,2]
[421082876,1776997847587,-278.30436195,0.00019178,2]
[421082877,1776997847596,-500.0,0.00019178,2]
[421082878,1776997847606,-500.0,0.00019178,2]
[421082879,1776997847617,-724.08,0.00019178,2]
[421082880,1776997847627,-249.44391604,0.00019178,2]
[421082881,1776997847639,-523.60139385,0.00019178,2]
[421082882,1776997847651,-500.0,0.00019178,2]
[421082883,1776997847661,-500.0,0.00019178,2]
[421082884,1776997847671,-500.0,0.00019178,2]
[421082885,1776997847680,-500.0,0.00019178,2]
[421082886,1776997847689,-500.0,0.00019178,2]
[421082887,1776997847698,-500.0,0.00019178,2]
[421082888,1776997847708,-160.06007009,0.00019178,2]
[421082889,1776997847717,-500.0,0.00019178,2]
[421082890,1776997847726,-500.0,0.00019178,2]
[421082891,1776997847735,-500.0,0.00019178,2]
[421082892,1776997847744,-500.0,0.00019178,2]
[421082893,1776997847753,-500.0,0.00019178,2]
[421082894,1776997847762,-500.0,0.00019178,2]
[421082895,1776997847772,-512.0291158,0.00019178,2]
[421082896,1776997847781,-500.0,0.00019178,2]
[421082897,1776997847790,-513.80913314,0.00019178,2]
[421082898,1776997847799,-500.0,0.00019178,2]
[421082899,1776997847808,-519.96397885,0.00019178,2]
[421082900,1776997847818,-603.17,0.00019178,2]
[421082901,1776997847827,-803.29,0.00019178,2]
[421082902,1776997847836,-500.0,0.00019178,2]
[421082903,1776997847845,-500.0,0.00019178,2]
[421082904,1776997847854,-500.0,0.00019178,2]
[421082905,1776997847863,-500.0,0.00019178,2]
[421082906,1776997847872,-500.0,0.00019178,2]
[421082907,1776997847881,-500.0,0.00019178,2]
[421082908,1776997847891,-956.62,0.00019178,2]
[421082909,1776997847900,-1420.28,0.00019178,2]
[421082910,1776997847909,-500.0,0.00019178,2]
[421082911,1776997847918,-500.0,0.00019178,2]
[421082912,1776997847927,-500.0,0.00019178,2]
[421082913,1776997847937,-405.60110395,0.00019178,2]
[421082914,1776997847946,-500.0,0.00019178,2]
[421082915,1776997847955,-500.0,0.00019178,2]
[421082916,1776997847964,-500.0,0.00019178,2]
[421082917,1776997847974,-500.0,0.00019178,2]
[421082918,1776997847984,-500.0,0.00019178,2]
[421082919,1776997847994,-500.0,0.00019178,2]
[421082920,1776997848005,-4075.25,0.00019178,2]
[421082921,1776997848015,-500.0,0.00019178,2]
[421082922,1776997848024,-513.05322379,0.00019178,2]
[421082923,1776997848033,-1143.1,0.00019178,2]
[421082924,1776997848044,-1239.36,0.00019178,2]
[421082925,1776997848058,-500.0,0.00019178,2]
[421082926,1776997848069,-500.0,0.00019178,2]
[421082927,1776997848079,-2260.17,0.00019178,2]
[421082928,1776997848089,-2392.9325,0.00019178,2]
[421082929,1776997848099,-669.12,0.00019178,2]
[421082930,1776997848108,-500.0,0.00019178,2]
[421082931,1776997848118,-506.68149756,0.00019178,2]
[421082932,1776997848128,-500.0,0.00019178,2]
[421082933,1776997848138,-826.11,0.00019178,2]
[421082934,1776997848147,-490.10292673,0.00019178,2]
[421082935,1776997848156,-500.0,0.00019178,2]
[421082936,1776997848166,-500.0,0.00019178,2]
[421082937,1776997848176,-500.0,0.00019178,2]
[421082938,1776997848185,-500.0,0.00019178,2]
[421082939,1776997848195,-500.0,0.00019178,2]
[421082940,1776997848204,-500.0,0.00019178,2]
[421082941,1776997848214,-500.0,0.00019178,2]
[421082942,1776997848224,-500.0,0.00019178,2]
[421082943,1776997848233,-500.0,0.00019178,2]
[421082944,1776997848243,-500.0,0.00019178,2]
[421082945,1776997848252,-500.0,0.00019178,2]
[421082946,1776997848262,-500.0,0.00019178,2]
[421082947,1776997848272,-500.0,0.00019178,2]
[421082948,1776997848282,-358.83976592,0.00019178,2]
[421082949,1776997848291,-500.0,0.00019178,2]
[421082950,1776997848301,-500.0,0.00019178,2]
[421082951,1776997848310,-500.0,0.00019178,2]
[421082952,1776997848320,-642.40816053,0.00019178,2]
[421082953,1776997848329,-621.86910808,0.00019178,2]
[421082954,1776997848339,-2399.56,0.00019178,2]
[421082955,1776997848349,-500.0,0.00019178,2]
[421082956,1776997848359,-500.0,0.00019178,2]
[421082957,1776997848369,-500.0,0.00019178,2]
[421082958,1776997848378,-500.0,0.00019178,2]
[421082959,1776997848388,-500.0,0.00019178,2]
[421082960,1776997848398,-500.0,0.00019178,2]
[421082961,1776997848407,-500.0,0.00019178,2]
[421082962,1776997848417,-500.0,0.00019178,2]
[421082963,1776997848426,-1098.63,0.00019178,2]
[421082964,1776997848436,-500.0,0.00019178,2]
[421082965,1776997848446,-521.03512764,0.00019178,2]
[421082966,1776997848456,-500.0,0.00019178,2]
[421082967,1776997848465,-500.0,0.00019178,2]
[421082968,1776997848475,-500.0,0.00019178,2]
[421082969,1776997848485,-503.86,0.00019178,2]
[421082970,1776997848494,-500.0,0.00019178,2]
[421082971,1776997848504,-500.0,0.00019178,2]
[421082972,1776997848514,-210.670296,0.00019178,2]
[421082973,1776997848524,-1368.52,0.00019178,2]
[421082974,1776997848533,-285.55034059,0.00019178,2]
[421082975,1776997848558,-214.44965941,0.00019178,2]
[421082976,1776997848568,-154.722945,0.00019178,2]
[421082977,1776997848578,-1221.63,0.00019178,2]
[421082978,1776997848588,-500.0,0.00019178,2]
[421082979,1776997848597,-193.779855,0.00019178,2]
[421082980,1776997848607,-193.779855,0.00019178,2]
[421082981,1776997848616,-193.779855,0.00019178,2]
[421082982,1776997848626,-193.779855,0.00019178,2]
[421082983,1776997848635,-193.779855,0.00019178,2]
[421082984,1776997848645,-193.779855,0.00019178,2]
[421082985,1776997848654,-193.779855,0.00019178,2]
[421082986,1776997848664,-193.779855,0.00019178,2]
[421082987,1776997848673,-193.779855,0.00019178,2]
[421082988,1776997848682,-193.779855,0.00019178,2]
[421082989,1776997848692,-543.9383564,0.00019178,2]
[421082990,1776997848702,-193.779855,0.00019178,2]
[421082991,1776997848711,-193.779855,0.00019178,2]
[421082992,1776997848721,-193.779855,0.00019178,2]
[421082993,1776997848730,-500.0,0.00019178,2]
[421082994,1776997848740,-193.779855,0.00019178,2]